bitfinex-derivatives/quotes_BTCF0:USTF0_20220103
["timestamp","ask_amount","ask_price","bid_price","bid_amount"]
[1641252736859,0.009794,46421.0,46415.0,0.18]
[1641252737258,0.190794,46421.0,46415.0,0.18]
[1641252738359,0.190794,46421.0,46414.0,0.2]
[1641252738558,0.190794,46421.0,46414.0,0.02]
[1641252739362,0.181794,46421.0,46414.0,0.02]
[1641252739761,0.181794,46421.0,46415.0,0.7633469]
[1641252739962,1.21667126,46416.0,46415.0,0.7633469]
[1641252741367,1.37667126,46416.0,46415.0,0.7633469]
[1641252742366,0.16,46416.0,46415.0,0.7633469]
[1641252742565,1.21667126,46417.0,46415.0,0.7633469]
[1641252743269,1.37867126,46417.0,46416.0,0.18]
[1641252743774,0.02154474,46429.0,46416.0,0.26683]
[1641252743972,0.02154474,46429.0,46425.0,0.18]
[1641252745271,0.02154474,46429.0,46425.0,0.375]
[1641252745474,0.02154474,46429.0,46425.0,0.9583469]
[1641252746676,1.8533,46439.0,46428.0,0.18]
[1641252746873,0.3446,46443.0,46437.0,0.18]
[1641252747076,0.52275495,46440.0,46437.0,0.25338]
[1641252747272,0.52275495,46440.0,46437.0,0.07338]
[1641252747674,0.02154058,46438.0,46437.0,0.07338]
[1641252748878,0.08529,46438.0,46426.0,0.18]
[1641252749076,0.11662683,46438.0,46423.0,0.18]
[1641252749277,1.24662683,46438.0,46437.0,0.185]
[1641252749475,1.24762683,46438.0,46423.0,1.44900807]
[1641252749679,1.24663128,46438.0,46423.0,2.28794539]
[1641252749881,0.001,46433.0,46423.0,2.28794539]
[1641252750080,0.001,46428.0,46423.0,2.28794539]
[1641252750279,0.001,46424.0,46423.0,2.28794539]
[1641252750481,0.001,46424.0,46423.0,1.44900807]
[1641252750680,0.001,46424.0,46422.0,0.87993431]
[1641252750880,0.08143,46428.0,46422.0,0.87993431]
[1641252751282,0.187,46424.0,46422.0,1.01393431]
[1641252752184,0.187,46424.0,46422.0,0.134]
[1641252752683,0.08143,46428.0,46417.0,0.14033567]
[1641252753083,0.14033567,46427.0,46417.0,0.14033567]
[1641252753284,0.14033567,46427.0,46420.0,0.48233567]
[1641252753483,0.14033567,46427.0,46421.0,0.18]
[1641252753683,0.14033567,46427.0,46424.0,0.18]
[1641252755285,0.29833567,46427.0,46424.0,0.368]
[1641252756693,0.14033567,46427.0,46424.0,0.18]
[1641252757297,0.29933567,46427.0,46424.0,0.368]
[1641252758396,0.159,46427.0,46424.0,0.548]
[1641252758597,0.8501673,46431.0,46424.0,0.36]
[1641252758799,0.8501673,46431.0,46424.0,0.18]
[1641252758997,0.8501673,46431.0,46430.0,0.18]
[1641252759197,0.8501673,46431.0,46430.0,0.24063]
[1641252760398,0.14033567,46432.0,46430.0,0.24063]
[1641252761401,0.14033567,46432.0,46430.0,0.43263]
[1641252762700,0.14033567,46432.0,46430.0,0.24063]
[1641252763301,0.14033567,46432.0,46430.0,0.43263]
[1641252764801,0.14033567,46432.0,46430.0,0.24063]
[1641252765405,0.14033567,46432.0,46430.0,0.43263]
[1641252765702,0.14033567,46432.0,46430.0,0.25263]
[1641252765903,0.14033567,46432.0,46430.0,0.192]
[1641252766704,0.14033567,46432.0,46425.0,0.32033567]
[1641252767304,0.14033567,46432.0,46425.0,0.51133567]
[1641252767508,0.14033567,46432.0,46425.0,0.33133567]
[1641252767704,0.14033567,46432.0,46427.0,0.18]
[1641252769307,0.14033567,46432.0,46431.0,0.18]
[1641252770907,0.8501673,46437.0,46431.0,0.18]
[1641252771108,0.8501673,46437.0,46435.0,0.18]
[1641252771510,0.8901673,46437.0,46435.0,0.18]
[1641252771910,0.04,46437.0,46435.0,0.18]
[1641252772811,0.03133259,46443.0,46436.0,0.95745021]
[1641252773009,0.03133259,46443.0,46436.0,1.05105021]
[1641252773209,0.03133259,46443.0,46440.0,0.18]
[1641252774911,2.67993713,46454.0,46440.0,0.27133]
[1641252775110,2.67993713,46454.0,46444.0,0.18]
[1641252775313,0.16187019,46452.0,46444.0,0.18]
[1641252776211,0.02153562,46449.0,46444.0,0.18]
[1641252776713,0.32033567,46445.0,46431.0,1.27221503]
[1641252777111,0.14033567,46438.0,46431.0,1.27221503]
[1641252777511,0.14033567,46438.0,46432.0,0.323952]
[1641252778411,0.32733567,46445.0,46433.0,0.94934375]
[1641252778614,0.85152712,46436.0,46433.0,0.94934375]
[1641252778813,0.85152712,46436.0,46434.0,0.324913]
[1641252779212,1.21646731,46438.0,46433.0,1.08967942]
[1641252779413,0.184,46436.0,46433.0,1.08967942]
[1641252780213,1.21646731,46439.0,46433.0,1.08967942]
[1641252780416,0.02153171,46457.0,46438.0,0.02153171]
[1641252780714,1.21638584,46441.0,46438.0,0.11412171]
[1641252780913,1.21638584,46441.0,46439.0,0.322327]
[1641252781415,1.21638584,46441.0,46440.0,0.14033567]
[1641252781714,1.9579,46454.0,46440.0,0.14033567]
[1641252782614,0.18,46448.0,46441.0,0.94934375]
[1641252782814,0.23912722,46455.0,46442.0,0.02153037]
[1641252783016,0.12,46454.0,46442.0,0.17153319]
[1641252783214,0.23912722,46455.0,46449.0,0.14033567]
[1641252783413,0.186,46452.0,46449.0,0.22962567]
[1641252783813,0.185,46452.0,46449.0,0.22962567]
[1641252784815,0.18,46453.0,46449.0,0.14033567]
[1641252785315,0.18,46453.0,46450.0,0.94934375]
[1641252785517,0.362,46453.0,46450.0,0.94934375]
[1641252786817,0.18,46453.0,46450.0,0.94934375]
[1641252787418,0.374,46453.0,46450.0,0.94934375]
[1641252788619,0.18,46453.0,46450.0,0.94934375]
[1641252789421,0.364,46453.0,46450.0,1.10734375]
[1641252790523,0.364,46453.0,46451.0,0.94934375]
[1641252790724,0.18,46453.0,46451.0,0.94934375]
[1641252791424,0.365,46453.0,46451.0,1.12334375]
[1641252792722,0.18,46453.0,46452.0,0.94934375]
[1641252793325,0.14033567,46456.0,46452.0,0.94934375]
[1641252793622,0.365,46453.0,46452.0,0.173]
[1641252794724,0.18,46453.0,46449.0,0.14033567]
[1641252795323,0.14033567,46456.0,46449.0,0.14033567]
[1641252795523,0.185,46453.0,46449.0,0.31433567]
[1641252795724,0.185,46453.0,46449.0,0.39304567]
[1641252796423,0.18,46452.0,46449.0,0.39304567]
[1641252796825,0.18,46452.0,46449.0,0.21904567]
[1641252797026,0.18,46455.0,46449.0,0.14033567]
[1641252797227,0.14033567,46456.0,46449.0,0.14033567]
[1641252797527,0.18,46452.0,46449.0,0.31833567]
[1641252798728,0.14033567,46456.0,46449.0,0.14033567]
[1641252799129,0.18,46450.0,46449.0,0.14033567]
[1641252799531,0.18,46450.0,46449.0,0.30433567]
[1641252799728,0.36,46450.0,46449.0,0.164]
[1641252800132,0.18,46450.0,46449.0,0.164]
[1641252801338,1.02682467,46450.0,46449.0,0.164]
[1641252801532,1.21582467,46450.0,46449.0,0.128]
[1641252802032,0.369,46450.0,46449.0,0.128]
[1641252802231,0.189,46450.0,46449.0,0.128]
[1641252802635,0.189,46450.0,46444.0,0.0316]
[1641252802835,0.84682467,46452.0,46444.0,0.0316]
[1641252803035,0.84682467,46451.0,46444.0,0.12099]
[1641252803435,0.84682467,46451.0,46445.0,0.32191]
[1641252804136,0.187,46452.0,46445.0,0.32191]
[1641252804736,0.84682467,46454.0,46445.0,0.32191]
[1641252804948,0.14033567,46456.0,46445.0,0.32191]
[1641252805147,0.14033567,46456.0,46445.0,1.89745173]
[1641252805346,0.14033567,46456.0,46446.0,0.14033567]
[1641252805546,0.32333567,46456.0,46446.0,0.14033567]
[1641252805945,0.50333567,46456.0,46446.0,0.14033567]
[1641252806148,0.84682467,46455.0,46446.0,0.14033567]
[1641252806346,0.18,46449.0,46446.0,0.14033567]
[1641252806549,0.18,46448.0,46446.0,0.14033567]
[1641252807449,0.18,46448.0,46446.0,0.33033567]
[1641252809451,0.84682467,46454.0,46446.0,0.33133567]
[1641252810953,0.84682467,46454.0,46446.0,0.14033567]
[1641252811256,0.84682467,46453.0,46446.0,0.14033567]
[1641252811451,0.84682467,46453.0,46446.0,0.31533567]
[1641252811855,0.18,46451.0,46446.0,0.31533567]
[1641252812054,0.18,46448.0,46446.0,0.31533567]
[1641252812954,0.18,46448.0,46446.0,0.14033567]
[1641252813553,0.364,46448.0,46446.0,0.32233567]
[1641252813758,0.184,46448.0,46446.0,0.32233567]
[1641252813955,0.18,46447.0,46446.0,0.32233567]
[1641252814854,0.18,46447.0,46446.0,0.14033567]
[1641252815054,0.84682467,46451.0,46446.0,0.14033567]
[1641252815255,0.84682467,46448.0,46447.0,0.97299561]
[1641252815855,0.18,46450.0,46447.0,0.97299561]
[1641252816056,1.39616212,46450.0,46447.0,0.97299561]
[1641252816258,1.39616212,46450.0,46447.0,1.04320561]
[1641252817258,0.85129496,46449.0,46447.0,1.04320561]
[1641252817457,0.85129496,46449.0,46447.0,1.21620561]
[1641252818059,1.76116212,46450.0,46448.0,0.97299561]
[1641252818259,1.58116212,46450.0,46448.0,0.97299561]
[1641252819561,1.75916212,46450.0,46448.0,1.14399561]
[1641252819761,1.57916212,46450.0,46448.0,1.14399561]
[1641252819969,1.75916212,46450.0,46448.0,1.14399561]
[1641252820560,1.57916212,46450.0,46448.0,1.14399561]
[1641252820861,1.57616212,46450.0,46448.0,0.97299561]
[1641252821260,0.18,46449.0,46448.0,0.97299561]
[1641252821463,0.18,46449.0,46448.0,1.14199561]
[1641252821660,0.18,46449.0,46448.0,0.169]
[1641252822760,0.18,46449.0,46446.0,0.14033567]
[1641252823161,0.18,46447.0,46446.0,0.14033567]
[1641252823562,0.18,46447.0,46446.0,0.31233567]
[1641252824865,0.18,46447.0,46446.0,0.14033567]
[1641252825565,0.363,46447.0,46446.0,0.31633567]
[1641252826866,0.18,46447.0,46446.0,0.14033567]
[1641252827566,0.365,46447.0,46446.0,0.31633567]
[1641252828567,0.365,46447.0,46446.0,0.38802567]
[1641252828968,0.18,46447.0,46446.0,0.21202567]
[1641252829170,1.21496634,46448.0,46446.0,0.21202567]
[1641252829370,0.18,46447.0,46446.0,0.21202567]
[1641252829569,0.365,46447.0,46446.0,0.38802567]
[1641252829769,0.185,46447.0,46446.0,0.38802567]
[1641252830170,0.365,46447.0,46446.0,0.38802567]
[1641252830970,0.18,46447.0,46446.0,0.21202567]
[1641252831570,0.18,46447.0,46446.0,0.40102567]
[1641252831972,1.21496634,46452.0,46446.0,0.40102567]
[1641252832775,0.18,46447.0,46446.0,0.21202567]
[1641252833575,0.18,46447.0,46446.0,0.40202567]
[1641252834174,0.8504809,46450.0,46446.0,0.40202567]
[1641252834774,0.18,46449.0,46446.0,0.21202567]
[1641252835675,0.18,46449.0,46446.0,0.39702567]
[1641252836977,0.8504809,46451.0,46446.0,0.21202567]
[1641252837175,0.8504809,46450.0,46447.0,0.97296514]
[1641252837674,0.18,46448.0,46447.0,0.97296514]
[1641252837874,0.8504809,46450.0,46447.0,0.97296514]
[1641252838274,0.18,46448.0,46447.0,0.97296514]
[1641252839578,0.18,46448.0,46447.0,1.16096514]
[1641252840175,0.06,46448.0,46447.0,1.16096514]
[1641252840375,0.8504809,46450.0,46447.0,1.16096514]
[1641252840774,0.8504809,46450.0,46447.0,0.97296514]
[1641252841476,0.8504809,46450.0,46447.0,1.15696514]
[1641252841979,0.8504809,46451.0,46448.0,0.97296514]
[1641252843379,0.8167809,46451.0,46450.0,0.02252419]
[1641252843578,0.9997809,46451.0,46450.0,0.02252419]
[1641252844786,0.8167809,46451.0,46450.0,0.02252419]
[1641252844983,1.21496634,46453.0,46450.0,0.02252419]
[1641252845184,0.14033567,46460.0,46450.0,0.02252419]
[1641252845185,1.35530201,46460.0,46452.0,0.001]
[1641252845386,1.35530201,46460.0,46450.0,2.44962506]
[1641252845584,1.35530201,46460.0,46450.0,2.64162506]
[1641252845985,0.18,46453.0,46450.0,2.64162506]
[1641252846186,0.18,46453.0,46452.0,0.001]
[1641252846786,0.18,46453.0,46450.0,1.66865992]
[1641252846986,0.18,46453.0,46450.0,1.47665992]
[1641252847586,0.18,46453.0,46450.0,1.66865992]
[1641252848586,0.18,46453.0,46450.0,0.21352419]
[1641252848786,0.18,46453.0,46450.0,0.02152419]
[1641252849587,0.18,46453.0,46450.0,0.21452419]
[1641252850588,0.36,46453.0,46450.0,0.193]
[1641252850789,0.36,46453.0,46449.0,1.45513573]
[1641252850989,0.18,46453.0,46449.0,1.45513573]
[1641252851189,0.18,46450.0,46449.0,1.45513573]
[1641252851590,0.18,46450.0,46449.0,1.56913573]
[1641252851788,0.18,46450.0,46449.0,0.114]
[1641252852988,1.03105702,46450.0,46443.0,1.45513573]
[1641252853290,0.18,46444.0,46443.0,1.45513573]
[1641252853491,0.24079,46444.0,46443.0,1.63013573]
[1641252854012,0.24079,46444.0,46443.0,0.175]
[1641252854811,0.24079,46444.0,46443.0,0.001]
[1641252855512,0.24079,46444.0,46443.0,0.193]
[1641252855711,0.24079,46444.0,46443.0,0.192]
[1641252856713,0.24079,46444.0,46440.0,1.45513573]
[1641252857413,0.06079,46444.0,46440.0,1.45513573]
[1641252857613,0.24579,46444.0,46440.0,1.61413573]
[1641252858015,0.18,46441.0,46440.0,1.61413573]
[1641252858215,0.36,46441.0,46440.0,0.159]
[1641252858816,0.36,46441.0,46437.0,1.45513573]
[1641252859018,0.36,46438.0,46437.0,1.45513573]
[1641252859418,0.18,46438.0,46437.0,1.45513573]
[1641252859618,0.18,46438.0,46437.0,1.63313573]
[1641252859619,0.357,46438.0,46437.0,1.63313573]
[1641252859818,0.537,46438.0,46437.0,1.63313573]
[1641252860320,0.357,46438.0,46437.0,1.63313573]
[1641252860518,0.537,46438.0,46437.0,1.63313573]
[1641252860920,0.36,46438.0,46435.0,2.61121342]
[1641252861118,0.18,46436.0,46435.0,1.45513573]
[1641252861322,0.18,46438.0,46435.0,1.45513573]
[1641252861518,0.37,46438.0,46435.0,1.61113573]
[1641252861718,0.37,46438.0,46435.0,0.156]
[1641252861920,0.51033567,46438.0,46435.0,0.156]
[1641252862119,0.51033567,46438.0,46435.0,0.25133]
[1641252862520,0.51033567,46438.0,46436.0,0.97319184]
[1641252862922,0.18,46438.0,46436.0,0.97319184]
[1641252863621,0.36,46438.0,46436.0,1.15219184]
[1641252864224,0.36,46438.0,46437.0,1.45513573]
[1641252865022,0.18,46438.0,46437.0,2.42832757]
[1641252865626,0.357,46438.0,46437.0,2.61132757]
[1641252866122,0.357,46438.0,46437.0,1.63813573]
[1641252866824,0.18,46438.0,46437.0,2.42832757]
[1641252867726,0.364,46438.0,46437.0,0.185]
[1641252868426,0.544,46438.0,46437.0,0.185]
[1641252868825,0.36,46438.0,46436.0,2.42832757]
[1641252869027,0.18,46437.0,46435.0,1.45513573]
[1641252869227,0.18,46436.0,46435.0,1.45513573]
[1641252869427,0.85105702,46440.0,46435.0,1.45513573]
[1641252869627,0.154,46437.0,46435.0,1.71366573]
[1641252869927,0.154,46437.0,46435.0,0.25853]
[1641252870327,0.18,46436.0,46435.0,0.25853]
[1641252870828,0.18,46436.0,46435.0,0.07353]
[1641252871028,0.18,46436.0,46434.0,1.45513573]
[1641252871228,0.18,46436.0,46435.0,1.45513573]
[1641252871429,0.85105702,46440.0,46435.0,1.45513573]
[1641252871628,0.18,46436.0,46435.0,1.45513573]
[1641252871829,0.18,46439.0,46436.0,0.01216339]
[1641252872029,0.18,46439.0,46435.0,1.46729912]
[1641252872231,0.85105702,46440.0,46435.0,1.46729912]
[1641252872433,0.85105702,46440.0,46435.0,1.45513573]
[1641252872830,0.85105702,46440.0,46436.0,0.0121633]
[1641252873031,1.21496634,46442.0,46438.0,1.45513573]
[1641252873232,0.85105702,46443.0,46438.0,1.45513573]
[1641252873632,0.18,46439.0,46438.0,1.62413573]
[1641252875534,0.358,46439.0,46438.0,1.63713573]
[1641252875836,0.538,46439.0,46438.0,1.63713573]
[1641252876633,0.358,46439.0,46438.0,1.63713573]
[1641252876835,0.36,46439.0,46438.0,1.45513573]
[1641252877035,0.36,46439.0,46437.0,1.45513573]
[1641252877236,0.18,46438.0,46437.0,1.45513573]
[1641252877535,0.352,46439.0,46437.0,1.63913573]
[1641252878837,0.18,46439.0,46437.0,1.45513573]
[1641252879540,0.362,46439.0,46437.0,1.63613573]
[1641252880856,0.362,46439.0,46436.0,1.45513573]
[1641252880857,0.18,46439.0,46436.0,1.45513573]
[1641252881557,0.363,46439.0,46436.0,1.63713573]
[1641252882960,0.18,46439.0,46435.0,1.45513573]
[1641252883160,0.85105702,46440.0,46435.0,1.45513573]
[1641252883360,0.18,46436.0,46435.0,1.45513573]
[1641252883560,0.18,46436.0,46435.0,1.63713573]
[1641252884360,0.18,46436.0,46435.0,1.24713573]
[1641252884862,0.18,46436.0,46435.0,1.06513573]
[1641252885561,0.18,46436.0,46435.0,1.25813573]
[1641252885762,0.18,46436.0,46435.0,0.193]
[1641252886362,0.18,46436.0,46435.0,1.16616199]
[1641252887562,0.18,46436.0,46435.0,1.35816199]
[1641252887763,0.85105702,46439.0,46435.0,1.16516199]
[1641252887963,0.85105702,46439.0,46435.0,1.26614571]
[1641252888163,0.85105702,46439.0,46438.0,0.001]
[1641252888363,0.85105702,46439.0,46438.0,0.14133567]
[1641252888565,0.85105702,46439.0,46438.0,0.16286594]
[1641252888765,1e-08,46441.0,46438.0,0.17602966]
[1641252888965,1e-08,46441.0,46440.0,0.001]
[1641252889169,0.18,46442.0,46440.0,0.001]
[1641252889365,0.8514259,46444.0,46440.0,0.01216372]
[1641252889564,0.8514259,46444.0,46440.0,0.19]
[1641252889966,0.8514259,46444.0,46441.0,0.01216372]
[1641252890166,0.8514259,46444.0,46443.0,0.001]
[1641252890366,2.00633567,46451.0,46443.0,0.14133567]
[1641252890567,0.13933567,46451.0,46443.0,0.15249939]
[1641252890766,0.13933567,46451.0,46443.0,0.14033567]
[1641252891172,0.13933567,46451.0,46444.0,2.42613324]
[1641252892571,0.18,46445.0,46444.0,2.42613324]
[1641252892970,0.18,46445.0,46444.0,0.97316199]
[1641252893169,0.36,46445.0,46444.0,0.97316199]
[1641252893369,0.16087001,46451.0,46444.0,0.97316199]
[1641252893569,0.36,46445.0,46444.0,1.15416199]
[1641252894973,0.36,46445.0,46444.0,0.97316199]
[1641252895577,0.36,46445.0,46444.0,1.11916199]
[1641252896375,0.18,46445.0,46444.0,1.11916199]
[1641252896976,0.13933567,46451.0,46444.0,1.11916199]
[1641252897178,0.13933567,46451.0,46444.0,1.17941199]
[1641252897577,0.85134103,46448.0,46444.0,1.17241199]
[1641252898377,0.85134103,46449.0,46445.0,1.11349766]
[1641252899578,0.85134103,46449.0,46445.0,1.30149766]
[1641252900078,0.13933567,46451.0,46446.0,0.97316199]
[1641252900079,0.85134103,46450.0,46446.0,0.97316199]
[1641252900678,0.85134103,46450.0,46447.0,0.97316199]
[1641252901480,0.85134103,46450.0,46447.0,1.15916199]
[1641252901685,0.85134103,46450.0,46448.0,0.97316199]
[1641252902679,0.18,46449.0,46448.0,0.97316199]
[1641252902880,0.18,46449.0,46446.0,1.45297125]
[1641252903288,0.18,46447.0,46446.0,1.45297125]
[1641252903487,0.18,46447.0,46445.0,0.14033567]
[1641252903689,0.18,46447.0,46446.0,0.189]
[1641252904681,0.85134103,46449.0,46446.0,0.189]
[1641252904883,0.18,46447.0,46446.0,0.189]
[1641252905490,0.18,46447.0,46445.0,0.14033567]
[1641252905681,0.18,46447.0,46446.0,0.193]
[1641252906289,0.85134103,46449.0,46446.0,0.193]
[1641252906890,0.18,46447.0,46445.0,0.14033567]
[1641252907091,0.85134103,46449.0,46445.0,0.14033567]
[1641252907285,0.85134103,46449.0,46445.0,1.59330692]
[1641252907490,0.85134103,46450.0,46445.0,1.59330692]
[1641252907894,1.1706767,46451.0,46445.0,1.78130692]
[1641252908086,0.18,46446.0,46445.0,1.78130692]
[1641252908286,0.9906767,46451.0,46445.0,1.78130692]
[1641252908788,0.18,46450.0,46445.0,1.78130692]
[1641252908989,0.18,46446.0,46445.0,1.78130692]
[1641252909188,0.9906767,46451.0,46445.0,1.59330692]
[1641252909389,0.18,46446.0,46445.0,1.59330692]
[1641252909789,0.18,46446.0,46445.0,1.77230692]
[1641252909998,0.18,46446.0,46445.0,0.31933567]
[1641252910391,0.9906767,46451.0,46445.0,0.31933567]
[1641252910598,0.18,46446.0,46445.0,0.31933567]
[1641252910799,0.9906767,46451.0,46445.0,0.31933567]
[1641252910999,0.9906767,46451.0,46445.0,0.14033567]
[1641252911292,1.1706767,46451.0,46445.0,0.14033567]
[1641252911693,1.1706767,46451.0,46445.0,0.31933567]
[1641252912193,0.9906767,46451.0,46445.0,0.31933567]
[1641252912998,0.9906767,46451.0,46445.0,0.14033567]
[1641252913715,0.85134103,46451.0,46445.0,0.31933567]
[1641252913916,0.85134103,46451.0,46445.0,0.70534514]
[1641252914111,0.85134103,46451.0,46446.0,0.32201]
[1641252914314,0.85134103,46451.0,46449.0,0.02152702]
[1641252914512,0.85134103,46451.0,46450.0,0.14033567]
[1641252914713,1.03134103,46451.0,46450.0,0.14033567]
[1641252915012,0.85134103,46452.0,46450.0,0.14033567]
[1641252915714,0.18,46451.0,46450.0,0.33533567]
[1641252915913,0.18,46451.0,46450.0,0.33633567]
[1641252917212,0.18,46451.0,46450.0,0.14133567]
[1641252917815,0.18,46451.0,46450.0,0.33733567]
[1641252918018,0.18,46460.0,46450.0,0.33733567]
[1641252918213,0.18,46460.0,46450.0,0.33633567]
[1641252918414,0.18,46451.0,46450.0,0.33633567]
[1641252918713,0.18,46451.0,46450.0,0.33733567]
[1641252919113,0.18,46451.0,46450.0,0.14133567]
[1641252919714,0.18,46451.0,46450.0,0.33833567]
[1641252921015,0.18,46451.0,46450.0,0.14133567]
[1641252921415,0.14033567,46462.0,46450.0,0.14133567]
[1641252921618,0.14033567,46462.0,46450.0,0.16186187]
[1641252921916,0.18,46452.0,46450.0,0.35286187]
[1641252922115,0.18,46452.0,46450.0,0.33133567]
[1641252922315,0.2015296,46461.0,46450.0,0.33133567]
[1641252922316,0.06,46456.0,46450.0,0.33133567]
[1641252922515,0.18,46456.0,46450.0,0.33133567]
[1641252922719,0.18,46459.0,46450.0,0.33133567]
[1641252922920,0.18,46451.0,46450.0,0.33133567]
[1641252923117,0.18,46456.0,46450.0,0.33233567]
[1641252923317,0.18,46454.0,46450.0,0.33133567]
[1641252923717,0.18,46454.0,46450.0,0.32533567]
[1641252924316,0.189794,46464.0,46450.0,0.32533567]
[1641252924317,0.18,46451.0,46450.0,0.32533567]
[1641252924516,0.18,46451.0,46450.0,0.32633567]
[1641252925117,0.009794,46464.0,46450.0,0.14133567]
[1641252925316,0.18,46456.0,46450.0,0.14033567]
[1641252925818,0.18,46454.0,46452.0,0.02152573]
[1641252927819,0.18,46454.0,46452.0,0.21852573]
[1641252929021,0.18,46454.0,46452.0,0.02152573]
[1641252929621,0.18,46454.0,46450.0,0.14033567]
[1641252929822,0.18,46460.0,46452.0,0.19]
[1641252930222,0.18,46453.0,46452.0,0.19]
[1641252931126,0.18,46453.0,46450.0,0.14033567]
[1641252931724,0.18,46453.0,46450.0,0.33133567]
[1641252932124,0.18,46462.0,46450.0,0.35286241]
[1641252932325,0.18,46462.0,46450.0,0.41118567]
[1641252932523,0.85134103,46456.0,46453.0,0.43053849]
[1641252932724,0.85134103,46456.0,46455.0,0.14033567]
[1641252932924,0.85134103,46456.0,46455.0,0.16185956]
[1641252933326,1.21620147,46458.0,46455.0,1.13569688]
[1641252933529,1.03134103,46462.0,46458.0,0.43048904]
[1641252933727,1.03134103,46462.0,46461.0,0.001]
[1641252933926,1.03134103,46462.0,46461.0,0.06867]
[1641252934127,1.03134103,46462.0,46461.0,0.068834]
[1641252934528,1.03134103,46462.0,46461.0,0.06867]
[1641252934727,1.03134103,46462.0,46461.0,0.20900567]
[1641252935128,0.18,46462.0,46461.0,1.18184299]
[1641252935928,0.18,46462.0,46461.0,1.38084299]
[1641252936329,0.85134103,46465.0,46461.0,1.38084299]
[1641252936527,0.85134103,46465.0,46461.0,1.37984299]
[1641252936728,0.18,46462.0,46461.0,1.37984299]
[1641252936927,0.85134103,46465.0,46461.0,1.38084299]
[1641252937127,0.85134103,46465.0,46462.0,0.321856]
[1641252937327,0.85134103,46465.0,46461.0,1.50416999]
[1641252937529,0.85134103,46465.0,46461.0,1.18084299]
[1641252937731,0.18,46462.0,46461.0,1.18084299]
[1641252937930,0.85134103,46465.0,46461.0,1.18184299]
[1641252938131,0.18,46462.0,46461.0,1.18084299]
[1641252938331,0.85134103,46466.0,46461.0,0.20900567]
[1641252938531,0.85134103,46466.0,46464.0,0.12]
[1641252938735,0.85134103,46466.0,46462.0,0.321328]
[1641252938931,0.85134103,46466.0,46465.0,0.319759]
[1641252939131,0.06,46467.0,46465.0,0.319759]
[1641252939331,0.06,46467.0,46461.0,0.16185543]
[1641252939532,0.06,46462.0,46461.0,0.16185543]
[1641252939731,0.06,46462.0,46461.0,0.16285543]
[1641252940332,0.06,46462.0,46461.0,1.5971656]
[1641252940532,0.06,46462.0,46461.0,1.57564584]
[1641252941338,0.06,46462.0,46461.0,0.14133567]
[1641252941934,0.85134103,46467.0,46461.0,0.33733567]
[1641252942134,0.85134103,46467.0,46466.0,0.001]
[1641252942334,1.22599547,46470.0,46466.0,0.001]
[1641252942534,1.21620147,46468.0,46461.0,0.33633567]
[1641252942735,1.21620147,46468.0,46466.0,0.001]
[1641252942934,1.21620147,46468.0,46467.0,0.001]
[1641252943140,1.27620147,46468.0,46467.0,0.001]
[1641252943435,0.06,46468.0,46465.0,0.02151984]
[1641252943937,0.06,46468.0,46467.0,0.192]
[1641252945037,0.06,46468.0,46465.0,0.02151984]
[1641252945835,0.06,46468.0,46465.0,0.21551984]
[1641252946938,1.21620147,46471.0,46465.0,0.21551984]
[1641252947137,0.06,46469.0,46467.0,0.02151723]
[1641252947936,0.06,46469.0,46467.0,0.21651723]
[1641252948138,0.06,46469.0,46468.0,0.001]
[1641252949239,0.06,46469.0,46468.0,0.323925]
[1641252949439,1.21620147,46475.0,46469.0,0.35855044]
[1641252949839,1.21620147,46475.0,46470.0,0.323141]
[1641252950040,1.21620147,46475.0,46468.0,0.193]
[1641252950240,1.21620147,46476.0,46468.0,0.516159]
[1641252950940,1.21620147,46476.0,46473.0,0.14033567]
[1641252951441,1.21620147,46476.0,46474.0,0.319371]
[1641252951642,1.21620147,46476.0,46473.0,0.14033567]
[1641252951840,1.21620147,46476.0,46475.0,0.18]
[1641252952041,1.21620147,46477.0,46475.0,0.20151497]
[1641252952240,1.21620147,46477.0,46476.0,0.001]
[1641252952441,0.12704539,46496.0,46476.0,0.181]
[1641252952640,0.12704539,46496.0,46483.0,0.18]
[1641252952840,0.12704539,46496.0,46493.0,0.14033567]
[1641252953442,0.0215132,46498.0,46493.0,0.14033567]
[1641252955947,0.2105132,46498.0,46493.0,0.14033567]
[1641252957143,0.0215132,46498.0,46493.0,0.14033567]
[1641252957544,1.13,46499.0,46493.0,0.14033567]
[1641252957744,0.009794,46501.0,46493.0,0.14033567]
[1641252957945,0.188,46498.0,46493.0,0.14033567]
[1641252959350,0.2501,46500.0,46493.0,0.14033567]
[1641252959847,0.12154742,46499.0,46493.0,0.14033567]
[1641252960648,0.4381,46500.0,46493.0,0.14033567]
[1641252961251,0.2501,46500.0,46493.0,0.14033567]
[1641252961953,0.4401,46500.0,46493.0,0.14033567]
[1641252962447,0.4401,46500.0,46493.0,0.23549567]
[1641252963450,0.2501,46500.0,46493.0,0.23549567]
[1641252963849,0.4451,46500.0,46493.0,0.23549567]
[1641252965051,0.4451,46500.0,46499.0,0.14033567]
[1641252965252,0.2501,46500.0,46499.0,0.14033567]
[1641252965854,0.4431,46500.0,46499.0,0.14033567]
[1641252967156,0.2501,46500.0,46499.0,0.14033567]
[1641252967954,0.4431,46500.0,46499.0,0.14033567]
[1641252969155,0.2501,46500.0,46499.0,0.14033567]
[1641252969964,0.4441,46500.0,46499.0,0.14033567]
[1641252971366,0.2501,46500.0,46499.0,0.14033567]
[1641252971864,0.4451,46500.0,46499.0,0.14033567]
[1641252973266,0.2501,46500.0,46499.0,0.14033567]
[1641252973868,0.4461,46500.0,46499.0,0.14033567]
[1641252975367,0.2501,46500.0,46499.0,0.14033567]
[1641252975969,0.4461,46500.0,46499.0,0.14033567]
[1641252977272,0.2501,46500.0,46499.0,0.14033567]
[1641252977470,0.27161205,46500.0,46499.0,0.14033567]
[1641252977770,0.27161205,46500.0,46493.0,0.14033567]